Cogmind - Beta 13 @@@ ROGUE MODE // 2024.04.20 @ 13:44:20 Player: Thqwib Result: Destroyed by 8R-AWN with 8R-AWN's Boregun Performance ------------- Evolutions (0) 0 Regions Visited (3) 600 Robots Destroyed (24) 120 Value Destroyed (476) 476 Prototype IDs (23) 460 Alien Tech Used (0) 0 Bonus (395) 395 TOTAL SCORE: 2051 Bonus ------- Follower Combat Kills 95 Aligned with FarCom 300 Cogmind --------- Core Integrity 0/250 Matter 224/300 Energy 160/160 System Corruption 7% Temperature Cool (2) Movement Rolling (100) Location -10/Exiles Parts ------- > --- POWER (1) -------- Light Nuclear Core > --- PROPULSION (2) --- Compact Wheel Compact Wheel (fused) > --- UTILITY (2) ------ Large Storage Unit Core Shielding > --- WEAPON (2) ------- Light Assault Rifle Datajack > --- INVENTORY (15) --- Nuclear Core Nuclear Core Wheel Wheel Improved Heat Sink Structural Scanner Sensor Array Transport Network Coupler Skeleton Box Tractor Beam Peak State ------------ > --- POWER ------------ Ion Engine > --- PROPULSION ------- Compact Wheel Compact Wheel > --- UTILITY ---------- Large Storage Unit Skeleton Box > --- WEAPON ----------- EM Pulse Gun Light Cannon > --- INVENTORY -------- Nuclear Core Nuclear Core Light Nuclear Core Wheel Wheel Improved Heat Sink Structural Scanner Sensor Array Transport Network Coupler Core Shielding Tractor Beam Light Assault Rifle Light Cannon Datajack [Rating: 14] Favorites ----------- Power Ion Engine Engine Ion Engine Power Core Light Nuclear Core Propulsion Compact Wheel Wheel Compact Wheel Utility Large Storage Unit Device Tractor Beam Storage Large Storage Unit Processor Visual Processing Unit Protection Core Shielding Weapon Light Cannon Energy Gun EM Pulse Gun Energy Cannon Beam Cannon Ballistic Gun Light Assault Rifle Ballistic Cannon Light Cannon Special Melee Weapon Datajack Build | -11 -10 -10 -10 ------- Run | Yrd Mat Min Exi Slots Evolved . | . . . . Power . | . . . . Propulsion . | . . . . Utility . | . . . . Weapon . | . . . . Parts Attached 32 | 5 15 4 8 Power 5 | 1 2 1 1 Engine 4 | 1 2 1 . Core 1 | . . . 1 Reactor . | . . . . Propulsion 6 | 2 4 . . Treads . | . . . . Leg . | . . . . Wheel 6 | 2 4 . . Hover . | . . . . Flight . | . . . . Utility 8 | . 5 1 2 Device 3 | . 2 . 1 Storage 2 | . 2 . . Processor 1 | . 1 . . Hackware . | . . . . Protection 2 | . . 1 1 Artifact . | . . . . Weapon 13 | 2 4 2 5 Energy Gun 2 | 1 1 . . Energy Cannon 1 | . 1 . . Ballistic Gun 2 | 1 . . 1 Ballistic Cannon 4 | . 1 1 2 Launcher . | . . . . Special Weapon . | . . . . Impact Weapon . | . . . . Slashing Weapon . | . . . . Piercing Weapon . | . . . . Special Melee Weapon 4 | . 1 1 2 Unidentified Prototypes 1 | . . . 1 Parts Lost 6 | . 1 1 4 Power 2 | . . 1 1 Propulsion 1 | . 1 . . Utility . | . . . . Weapon 3 | . . . 3 Highest Loss Streak 4 | . 1 1 4 To Critical Strikes . | . . . . Average Slot Usage (%) 97 | . 95 99 98 Engine 13 | . 14 13 11 Wheel 28 | . 28 28 28 Storage 12 | . 12 14 14 Processor 6 | . 10 . . Protection 6 | . . 13 14 Energy Gun 7 | . 3 14 11 Energy Cannon 3 | . 5 . . Ballistic Gun 3 | . 5 . . Ballistic Cannon 12 | . 13 10 14 Special Melee Weapon 1 | . . 3 . Naked Turns . | . . . . Heaviest Build 32 | 5 31 31 32 Greatest Support 32 | 20 32 32 32 Greatest Overweight (x) 1 | . 1 . . Average Overweight (x) . | . . . . Largest Inventory Capacity 15 | 5 15 15 15 Average Capacity 13 | 5 12 15 15 Most Carried 14 | 1 13 13 14 Average Carried 9 | . 7 11 13 Final Capacity 15 | 5 15 15 15 Final Carried 13 | 1 13 11 10 Class Distribution -------------------- 100% | Mutant Dominant Class ---------------- Mutant | -10/Materials Mutant | -10/Mines Mutant | -10/Exiles Resources | -11 -10 -10 -10 ----------- Run | Yrd Mat Min Exi Matter Collected 743 | 255 358 63 67 Remotely 100 | . 100 . . Salvage Created 826 | 42 659 91 34 Parts 40 | 3 35 2 . Haulers Intercepted 2 | . 2 . . Recyclers Shooed . | . . . . Parts Field Recycled . | . . . . Retrieved Matter . | . . . . Parts Self-Destructed . | . . . . Prevented . | . . . . Kills | -11 -10 -10 -10 ------- Run | Yrd Mat Min Exi Combat Hostiles Destroyed 17 | 1 9 2 5 Guns 4 | 1 1 2 . Cannons 13 | . 8 . 5 Classes Destroyed 8 | 1 6 . 1 Worker 2 | . 2 . . Hauler 2 | . 2 . . Recycler 3 | . 3 . . Operator 2 | . 2 . . Watcher 3 | . 3 . . Swarmer 3 | . 3 . . Grunt 9 | 1 6 2 . Assembled 5 | . . . 5 Best Kill Streak 6 | 1 6 1 5 Combat Bots Only 5 | 1 3 1 5 Max Kills in Single Turn 1 | 1 1 1 1 Gunslinging . | . . . . Exploded . | . . . . Melee . | . . . . Uniques/NPCs Destroyed . | . . . . Combat | -11 -10 -10 -10 -------- Run | Yrd Mat Min Exi Hostile Shots Fired 94 | 6 30 11 47 Missed 20 | 1 4 3 12 Damage Taken 974 | 52 322 107 493 Core 252 | 22 97 . 133 Absorbed by Shields . | . . . . Redirected to Shielding 27 | . . . 27 Core Remaining (%) 91 | 91 . . . Volleys Fired 78 | 5 51 7 15 Largest 2 | 2 2 2 2 Hottest 95 | 60 95 75 70 Shots Fired 148 | 10 100 14 24 Gun 47 | 10 26 7 4 Cannon 101 | . 74 7 20 Launcher . | . . . . Special . | . . . . Kinetic 109 | 5 74 7 23 Thermal 31 | 5 26 . . Explosive . | . . . . Electromagnetic 8 | . . 7 1 Robot Hit Streak 16 | 4 5 10 16 Robot Miss Streak 4 | 1 4 1 2 Penetration Max . | . . . . Secondary Targets . | . . . . Shots Hit Robots 87 | 6 51 14 16 Core Hits 42 | 2 25 6 9 Critical Kills 1 | . 1 . . Critical Parts Destroyed . | . . . . Critical Strikes 4 | . 3 1 . Destroy 1 | . 1 . . Blast 3 | . 2 1 . Melee Attacks 6 | . 3 3 . Impact . | . . . . Slashing . | . . . . Piercing . | . . . . Sneak Attacks 5 | . 2 3 . Combat Hostiles . | . . . . Follow-up Attacks . | . . . . Damage Inflicted 1332 | 69 795 166 302 Guns 285 | 69 95 95 26 Cannons 1024 | . 677 71 276 Explosions . | . . . . Melee . | . . . . Ramming 23 | . 23 . . Kinetic 915 | 26 528 71 290 Thermal 287 | 43 244 . . Explosive . | . . . . Electromagnetic 107 | . . 95 12 Impact . | . . . . Slashing . | . . . . Piercing . | . . . . Highest Corruption 7 | . 2 2 7 Average Corruption 2 | . 1 2 2 Corruption Purged . | . . . . Corruption Blocked . | . . . . Effects 16 | . 4 5 7 Message Errors 4 | . . 3 1 Heat Flow Errors 2 | . 1 . 1 Energy Discharges 3 | . . 1 2 Parts Rejected 1 | . 1 . . Parts Fused 1 | . . . 1 Data Loss (minor) 3 | . 1 1 1 Misfires 2 | . 1 . 1 Overload Shots . | . . . . Overflow Damage 9 | . . . 9 Projectiles 9 | . . . 9 Explosions . | . . . . Melee . | . . . . Knockbacks 16 | . 7 2 7 Impact . | . . . . Kinetic 16 | . 7 2 7 Secondary . | . . . . Self-Inflicted Damage 10 | . 10 . . Shots . | . . . . Rammed 5 | . 5 . . Targets Rammed 5 | . 5 . . Kicked . | . . . . Crushed . | . . . . Highest Temperature 250 | 70 250 73 121 Average Temperature 67 | 40 81 38 42 Received Heat Transfer 397 | 30 147 60 160 Siege Activations . | . . . . Robots Corrupted . | . . . . Combat Hostiles . | . . . . Parts Fried . | . . . . Impact Corruptions . | . . . . Robots Melted . | . . . . Combat Hostiles . | . . . . Parts Melted 3 | 1 2 . . Heat Transferred 618 | 100 518 . . Parts Sabotaged . | . . . . Parts Stolen . | . . . . Parts Stripped . | . . . . Power Chain Reactions . | . . . . Alert | -11 -10 -10 -10 ------- Run | Yrd Mat Min Exi Peak Influence 279 | 20 279 184 . Initial 33 | . 13 33 . Average 128 | 3 135 130 . Maximum Alert Level 1 | . 1 . . Low Security (%) 81 | 100 73 100 . Level 1 18 | . 26 . . Level 2 . | . . . . Level 3 . | . . . . Level 4 . | . . . . Level 5 . | . . . . High Security . | . . . . Max Security . | . . . . Squads Dispatched 1 | . 1 . . Investigation . | . . . . Extermination . | . . . . Reinforcement 1 | . 1 . . Assault . | . . . . Garrison . | . . . . Intercept . | . . . . Searches Triggered . | . . . . Construction Impeded . | . . . . Haulers Reinforced . | . . . . Active Scanning Responses . | . . . . Cargo Convoy Interrupts . | . . . . Stealth | -11 -10 -10 -10 --------- Run | Yrd Mat Min Exi Distress Signals 1 | . 1 . . Communications Jammed . | . . . . Distress Signals . | . . . . Times Spotted 38 | 1 16 6 15 Peak Tracking Total 12 | 1 3 2 12 Tactical Retreats 3 | . 1 . 2 Traps | -11 -10 -10 -10 ------- Run | Yrd Mat Min Exi Traps Triggered 2 | . 2 . . Indirectly . | . . . . Trap Hack Attempts . | . . . . Triggered . | . . . . Disarmed . | . . . . Reprogrammed . | . . . . Reused . | . . . . Traps Extracted . | . . . . Installed . | . . . . Triggered . | . . . . Machines | -11 -10 -10 -10 ---------- Run | Yrd Mat Min Exi Machines Disabled 2 | . 1 . 1 Max in Single Turn 1 | . 1 . . Machines Repaired . | . . . . Machines Dismantled . | . . . . Machines Sabotaged . | . . . . Overloaded Fab Kills . | . . . . Hacking | -11 -10 -10 -10 --------- Run | Yrd Mat Min Exi Machines Accessed 9 | . 5 . 4 Terminals 4 | . 4 . . Fabricators . | . . . . Repair Stations . | . . . . Recycling Units 1 | . 1 . . Scanalyzers . | . . . . Garrison Access . | . . . . Total Hacks 35 | . 8 . 27 Successful 33 | . 6 . 27 Failed 2 | . 2 . . Catastrophic . | . . . . Database Lockouts . | . . . . Manual 1 | . . . 1 Terminals 7 | . 7 . . Fabricators . | . . . . Repair Stations . | . . . . Recycling Units 1 | . 1 . . Scanalyzers . | . . . . Garrison Access . | . . . . Terminal Hacks 32 | . 5 . 27 Record 28 | . 2 . 26 Level Access Points 1 | . 1 . . Hauler Manifests 1 | . 1 . . Zone Layout 1 | . 1 . . Derelict Proto ID Bank 1 | . . . 1 Fabricator Hacks . | . . . . Repair Station Hacks . | . . . . Recycling Unit Hacks 1 | . 1 . . Retrieve Components 1 | . 1 . . Scanalyzer . | . . . . Garrison Access Hacks . | . . . . Unauthorized Hacks . | . . . . Terminals . | . . . . Fabricators . | . . . . Repair Stations . | . . . . Recycling Units . | . . . . Scanalyzers . | . . . . Garrison Access . | . . . . Data Cores Recovered 1 | . 1 . . Used . | . . . . Hacking Detections 1 | . 1 . . Full Trace Events . | . . . . Feedback Events . | . . . . Feedback Blocked . | . . . . Robot Schematics Acquired . | . . . . Robots Built . | . . . . Authchips . | . . . . Time . | . . . . Total Robot Build Rating . | . . . . Part Schematics Acquired . | . . . . Parts Built . | . . . . Authchips . | . . . . Time . | . . . . Total Part Build Rating . | . . . . Parts Repaired . | . . . . Time . | . . . . Parts Recycled . | . . . . Recycled Matter . | . . . . Retrieved Matter . | . . . . Retrieved Components 3 | . 3 . . Parts Scanalyzed . | . . . . Part Schematics Acquired . | . . . . Parts Damaged . | . . . . Bothacking | -11 -10 -10 -10 ------------ Run | Yrd Mat Min Exi Used RIF Installer . | . . . . Robots Hacked 2 | . 2 . . Non-combat 2 | . 2 . . Combat . | . . . . Robot Hacks Applied 2 | . 2 . . parse_system 1 | . 1 . . no_distress 1 | . 1 . . Relay Couplers Released . | . . . . Fabnet Peak Effective % . | . . . . Robots Rewired . | . . . . Allies Hacked . | . . . . Hacks Repelled . | . . . . Allies | -11 -10 -10 -10 -------- Run | Yrd Mat Min Exi Total Allies 3 | . . 3 . Largest Group 3 | . . 3 3 Highest-Rated Group 40 | . . 40 40 Highest-Rated Ally 16 | . . 16 16 Total Orders 3 | . . 2 1 STAY 1 | . . . 1 FOLLOW 1 | . . 1 . GUARD 1 | . . 1 . Ally Attacks 36 | . . 15 21 Total Damage 419 | . . 157 262 Kills 8 | . . 3 5 Allies Corrupted . | . . . . Allies Melted . | . . . . Intel | -11 -10 -10 -10 ------- Run | Yrd Mat Min Exi Robot Analysis Total . | . . . . Derelict Logs Recovered 1 | . . 1 . Drone Launches . | . . . . Drone Recoveries . | . . . . Exploration | -11 -10 -10 -10 ------------- Run | Yrd Mat Min Exi Turns Passed 1812 | 69 971 369 403 Spaces Moved 1559 | 65 812 332 350 Core 16 | 16 . . . Treads . | . . . . Legs . | . . . . Wheels 1543 | 49 812 332 350 Hover . | . . . . Flight . | . . . . Fastest Speed 50 | 50 80 100 100 Average Speed 94 | 72 90 100 100 Slowest Speed 105 | 80 105 100 100 Overloaded Moves . | . . . . Propulsion Burnouts . | . . . . Robots Hopped . | . . . . Cave-ins Triggered . | . . . . Exploration Rate (%) 63 | 6 92 75 81 Regions Visited 3 Branch Regions 2 Pre-discovered Areas 1 | . . 1 . Known Exits Taken . | . . . . Unknown Exits Taken 3 | 1 1 1 . Scrap Searched . | . . . . Spaces Dug . | . . . . Terrain Destroyed . | . . . . Melee . | . . . . Projectile . | . . . . AOE . | . . . . Terrain Rammed . | . . . . Walls Destroyed . | . . . . Machines Disabled . | . . . . Actions | -11 -10 -10 -10 --------- Run | Yrd Mat Min Exi Total 1756 | 75 949 353 379 Wait 50 | . 43 7 . Move 1556 | 64 811 331 350 Hop . | . . . . Pick Up 18 | 1 14 . 3 Fast Attach 10 | 5 5 . . Attach 10 | . 4 2 4 Detach 1 | . 1 . . Swap 12 | . 6 2 4 Drop 7 | . 6 1 . Fire 78 | 5 51 7 15 Melee 6 | . 3 3 . Ram 5 | . 5 . . Kick . | . . . . Crush . | . . . . Escape Stasis . | . . . . Rewire 3 | . . . 3 Trap . | . . . . Miscellaneous . | . . . . Route ------- -11/Scrapyard -10/Materials (discovered 4 exits: *Mat x3 / [*Min]) -10/Mines (discovered 2 exits: *Mat / *Exi) -10/Exiles (discovered 1 exit: [*Min]) History --------- Turn | Location | Event 2 | -11/Scrapyard | Met Revision 17 42 | -11/Scrapyard | Discovered new exit (range 8) 70 | -11/Scrapyard | Entered Materials 301 | -10/Materials | Discovered new exit (range 6) 305 | -10/Materials | Identified exit to Materials 317 | -10/Materials | Build established: Mutant 533 | -10/Materials | Discovered new exit (range 9) 1041 | -10/Materials | Entered Mines 1047 | -10/Mines | Met a Derelict bent on vengeance 1115 | -10/Mines | Assisted by bots powering up and referring to "LRC-V3" 1126 | -10/Mines | Discovered exit to Materials (range 5) 1397 | -10/Mines | Deemed a non-threat by the Exiles lab entrance 1398 | -10/Mines | Discovered new exit (range 5) 1410 | -10/Mines | Entered Exiles 1410 | -10/Exiles | Accompanied by 3 allies 1441 | -10/Exiles | Discovered new exit (range 14) 1462 | -10/Exiles | Met 8R-AWN 1478 | -10/Exiles | Met EX-HEX 1515 | -10/Exiles | Met EX-BIN 1534 | -10/Exiles | Aligned with FarCom system 1535 | -10/Exiles | Given EX-Vault access code 1577 | -10/Exiles | Opened EX-Vault 1581 | -10/Exiles | Found Prototype Device 1582 | -10/Exiles | Identified Skeleton Box 1611 | -10/Exiles | Warned to stay clear of 0b10 Research branches 1640 | -10/Exiles | Met EX-DEC 1703 | -10/Exiles | Visited The Gauntlet 1715 | -10/Exiles | Attacked by the Exiles 1755 | -10/Exiles | Core integrity fell below 50% 1766 | -10/Exiles | Lost 3 allies 1805 | -10/Exiles | Core integrity fell below 20% 1813 | -10/Exiles | Destroyed by 8R-AWN with 8R-AWN's Boregun Last Messages --------------- Shield. 01806_ Penetrated by HV Slug. 01806_ Lgt. Cannon destroyed. 01806_ HV Slug penetrates Testing Chamber Shield. 01808_ Penetrated by HV Slug. 01808_ HV Slug penetrates Testing Chamber Shield. 01808_ Penetrated by HV Slug. 01808_ HV Slug penetrates Testing Chamber Shield. 01810_ HV Slug penetrates Testing Apparatus. 01810_ HV Slug penetrates Wall. 01810_ HV Slug penetrates Testing Apparatus. 01810_ Testing Apparatus damaged. 01810_ HV Slug penetrates Testing Apparatus. 01813_ Penetrated by HV Slug. 01813_ HV Slug penetrates Testing Chamber Shield. 01813_ Penetrated by HV Slug. Map ----- +----------------------------------------------------+ | ???????????????????????????????#" """" | | ???????????????????????????????#""" """ | | ????????????????????????????????# ""# | | ????????????????????????????????#"" """## | | ????????????????????????????????##""" ##? | | ?????????????????????????????????##"""" ##?? | | ??????????????????????????????????### #??? | | ????????????????????????????????????##### ##??? | | ????????????????????????????????????????## #???? | | ?????????????????????????????????????????# #???? | | ?????????????????????????????????????????# #???? | | ?????????????????????????????????????????# #???? | | ?????????######????????????????####??????# #???? | | ????????#""""""??????""""""???#""""""????# #???? | | ????????#"" "????#"""""""#??#"""""""#??# #???? | | ????????#" ?#"""""""" "#??#" """"#??# #???? | | ????????#"" "?#""#""" """#??#"" """#??# #???? | | ?????????"" "?#""#"" ""????"" ""???# #???? | | ????#######"""###""###"""########"""###### %%##### | | ???#"""" " """"""" """"""""* """"""%!% """" | | ???#" """""" """""" =g c *=!= | | ???#""" % c c | | ???#"""" | | ???#"" | | ???#""" "" | | ???#"" """ %"" "" @ " """ " """ """ | | ????#######"""########"""#;#""###"""########"""### | | ?????????"" "????#"" ""#""#"" ""????"" ""? | | ?????????""" ""????#""" ""#""#""" ""???#"" """# | | ????????#" """ ????#" """"""""#" " "???#"""""""# | | ?????????""""""????#"""""""#???"""""""???#"" """"# | | ???????????""?"????#"""""""#????""""""????"""""""? | | ????????????????????###"##?????????????????####??? | | ?????????????????????????????????????????????????? | | ?????????????????????????????????????????????????? | | ?????????????????????????????????????????????????? | | ?????????????????????????????????????????????????? | | | | | | | | | | | | | | | | | | | | | | | | | | | +----------------------------------------------------+ Best States ------------- Heat Dissipation 25 Energy Generation 14 Energy Capacity 250 Matter Stores 300 Matter Capacity 300 Sight Range 18 Terrain Scan Density 10 Core Shielding 20 Evasion (%) 50 Item Schematics ----------------- None Robot Schematics ------------------ None Fabricated ------------ Nothing Alien Tech Used ----------------- None Achievements -------------- None Challenges ------------ None Game ------ Seed CoolantNavigationCharger Manual? 0 Play Time 00:39:25 Cumulative 11.6 hours Start 2024.04.19 @ 22:12:56 End 2024.04.20 @ 13:44:20 Sessions 3 Manual Loads 0 Difficulty Rogue Special Mode None Game No. 9 Rogue 9 Adventurer 0 Explorer 0 Win Type - Total 0 Types 0/0/0/0/0/0/0/0/0 Lore% 7 Gallery% 17 Achievement% 15 Wizard Run 0 Options --------- Layout 2 ASCII 0 Keyboard 0 Movement Arrows Keybinds 0 Fullscreen 2 Font 24/Smallcaps Map View 50x44 Zoom Use 0% Tactical HUD 1 Map Filters NONE Filters NONE Steam 0 RUN: 14ae6279-be77-4665-af4a-d87d181b4418